bitfinex/quotes_BTCUSD_20251027
["timestamp","ask_amount","ask_price","bid_price","bid_amount"]
[1761556454715,0.02670448,115050.0,115040.0,0.68701402]
[1761556454914,0.23610448,115050.0,115040.0,0.68701402]
[1761556455115,0.23610448,115050.0,115040.0,1.26657776]
[1761556455116,0.02670448,115050.0,115040.0,1.26657776]
[1761556455312,0.00062081,115050.0,115040.0,0.80807613]
[1761556455557,1e-08,115050.0,115040.0,1.67400314]
[1761556455760,1e-08,115050.0,115040.0,1.69627679]
[1761556455962,1e-08,115050.0,115040.0,1.66503369]
[1761556456137,1e-08,115070.0,115060.0,0.55000463]
[1761556456372,0.00014607,115070.0,115060.0,1.40263508]
[1761556456904,0.00014607,115070.0,115060.0,1.41042503]
[1761556457304,0.00014607,115070.0,115060.0,1.41942503]
[1761556458448,0.00014607,115070.0,115060.0,1.36382503]
[1761556458984,0.00014607,115070.0,115060.0,1.32764275]
[1761556459386,0.00014607,115070.0,115060.0,1.36382503]
[1761556460214,0.00014607,115070.0,115060.0,1.30142173]
[1761556460599,0.00014607,115070.0,115060.0,1.36382503]
[1761556460802,0.00014607,115070.0,115060.0,1.30142173]
[1761556461955,0.00055983,115070.0,115060.0,1.30142173]
[1761556462252,0.00055983,115070.0,115060.0,1.34805114]
[1761556462971,0.00055983,115070.0,115060.0,0.8443191]
[1761556463143,0.00055983,115070.0,115060.0,0.5043191]
[1761556463339,0.00055983,115070.0,115060.0,1.00295719]
[1761556463546,0.00055983,115070.0,115060.0,0.84899719]
[1761556463706,0.00055983,115070.0,115060.0,0.84799719]
[1761556464166,0.00055983,115070.0,115060.0,0.84899719]
[1761556465194,0.00055983,115070.0,115060.0,0.84099719]
[1761556465579,0.00055983,115070.0,115060.0,0.84599719]
[1761556467443,0.00055983,115070.0,115060.0,0.3473591]
[1761556467652,0.00055983,115070.0,115060.0,0.84599719]
[1761556467852,0.00055983,115070.0,115060.0,0.3473591]
[1761556468054,0.00055983,115070.0,115060.0,0.30072969]
[1761556468256,0.00055983,115070.0,115060.0,0.79158189]
[1761556468684,0.00055983,115070.0,115060.0,0.2929438]
[1761556470349,0.00055983,115070.0,115060.0,0.20312479]
[1761556470820,0.00055983,115070.0,115060.0,0.17982235]
[1761556471887,0.00055983,115070.0,115060.0,0.17882235]
[1761556472096,0.00055983,115070.0,115060.0,0.17382235]
[1761556472808,0.01932634,115070.0,115060.0,0.17382235]
[1761556474724,0.23341346,115070.0,115060.0,0.17382235]
[1761556474926,0.21464695,115070.0,115060.0,0.17382235]
[1761556476190,0.04083971,115070.0,115060.0,0.17382235]
[1761556476513,0.23341346,115070.0,115060.0,0.17382235]
[1761556476624,0.21464695,115070.0,115060.0,0.17382235]
[1761556477025,0.00055983,115070.0,115060.0,0.17382235]
[1761556477277,0.01932634,115070.0,115060.0,0.17382235]
[1761556477456,0.00055983,115070.0,115060.0,0.17382235]
[1761556478298,0.00055983,115070.0,115060.0,0.68656054]
[1761556479407,0.00055983,115070.0,115060.0,0.68756054]
[1761556479614,0.00055983,115070.0,115060.0,0.69056054]
[1761556480214,0.00055983,115070.0,115060.0,0.72164887]
[1761556481351,0.00055983,115070.0,115060.0,0.78816544]
[1761556481547,0.00055983,115070.0,115060.0,0.80370652]
[1761556482850,0.00055983,115070.0,115060.0,0.95746652]
[1761556483240,0.00055983,115070.0,115060.0,0.75707711]
[1761556483613,0.00055983,115070.0,115060.0,0.97324041]
[1761556484026,0.0002,115080.0,115070.0,0.54998952]
[1761556484233,0.0002,115080.0,115070.0,1.68099099]
[1761556484234,1e-08,115080.0,115070.0,1.68099099]
[1761556484409,1e-08,115080.0,115070.0,1.61868003]
[1761556484636,1e-08,115080.0,115070.0,1.69693144]
[1761556484812,1e-08,115080.0,115070.0,0.71805994]
[1761556485470,0.0002,115100.0,115090.0,0.54995932]
[1761556485721,0.0002,115100.0,115090.0,0.79361833]
[1761556485895,0.0002,115100.0,115090.0,1.28305408]
[1761556486077,0.00061359,115100.0,115090.0,1.28305408]
[1761556487150,0.00061359,115100.0,115090.0,1.35038888]
[1761556487685,0.00061359,115100.0,115090.0,1.28905408]
[1761556487864,0.00061359,115100.0,115090.0,1.28854467]
[1761556488270,0.00061359,115100.0,115090.0,1.14437763]
[1761556488574,0.00061359,115100.0,115090.0,1.34777763]
[1761556488777,0.00061359,115100.0,115090.0,1.42211243]
[1761556492221,0.00061359,115100.0,115090.0,1.1970259]
[1761556492458,0.00061359,115100.0,115090.0,1.3507459]
[1761556492808,0.00061359,115100.0,115090.0,1.31456362]
[1761556493018,0.00061359,115100.0,115090.0,0.46496432]
[1761556493466,0.00061359,115100.0,115090.0,0.97356362]
[1761556493642,0.00061359,115100.0,115090.0,0.97456362]
[1761556494263,0.00061359,115100.0,115090.0,0.97356362]
[1761556494484,0.00061359,115100.0,115090.0,0.96356362]
[1761556494852,0.00061359,115100.0,115090.0,0.97156362]
[1761556495438,0.00061359,115100.0,115090.0,1.0077459]
[1761556495642,0.00061359,115100.0,115090.0,1.3477459]
[1761556495795,0.00061359,115100.0,115090.0,0.8491466]
[1761556495983,0.00061359,115100.0,115090.0,1.3477459]
[1761556503874,0.00061359,115100.0,115090.0,0.6954266]
[1761556504192,0.00061359,115100.0,115090.0,1.4031859]
[1761556504548,0.00061359,115100.0,115090.0,1.5507859]
[1761556505172,0.00061359,115100.0,115090.0,0.24641901]
[1761556505387,0.00061359,115100.0,115090.0,0.46684671]
[1761556505595,0.00061359,115100.0,115090.0,0.30369951]
[1761556505974,0.00061359,115100.0,115090.0,0.32702739]
[1761556506157,0.00061359,115100.0,115090.0,0.2138805]
[1761556506354,0.00061359,115100.0,115090.0,0.2128805]
[1761556507188,0.00061359,115100.0,115090.0,0.2048805]
[1761556507742,0.00061359,115100.0,115090.0,0.2078805]
[1761556508200,0.00061359,115100.0,115090.0,0.25453116]
[1761556510262,0.00061359,115100.0,115090.0,0.2234277]
[1761556511226,0.0193801,115100.0,115090.0,0.2234277]
[1761556511505,0.00061359,115100.0,115090.0,0.2234277]
[1761556511803,1.15120171,115100.0,115090.0,0.04965066]
[1761556512012,1.22225421,115100.0,115090.0,0.0575882]
[1761556512206,1.2483295,115100.0,115090.0,0.0575882]
[1761556512637,1.33814851,115100.0,115090.0,0.0575882]
[1761556512942,3.33814851,115100.0,115090.0,0.0575882]
[1761556513150,2.00431451,115100.0,115090.0,0.02639534]
[1761556513356,1.80493651,115100.0,115090.0,0.02339534]
[1761556514094,0.83942983,115100.0,115090.0,0.02339534]
[1761556514554,1.4574895,115100.0,115090.0,0.02339534]
[1761556515002,1.4575295,115100.0,115090.0,0.02339534]
[1761556516424,0.54045082,115100.0,115090.0,0.02339534]
[1761556516634,0.74965082,115100.0,115090.0,0.02339534]
[1761556516874,0.83946983,115100.0,115090.0,0.02339534]
[1761556518290,1.4575295,115100.0,115090.0,0.02339534]
[1761556520719,1.4574895,115100.0,115090.0,0.02339534]
[1761556521328,0.83942983,115100.0,115090.0,0.02339534]
[1761556521536,0.54045082,115100.0,115090.0,0.19717238]
[1761556521751,0.74961082,115100.0,115090.0,0.22836524]
[1761556522097,0.38353553,115100.0,115090.0,0.22836524]
[1761556522509,0.00061359,115100.0,115090.0,0.22836524]
[1761556522715,0.15417359,115100.0,115090.0,0.2049699]
[1761556523384,0.00061359,115100.0,115090.0,0.2049699]
[1761556524570,0.00061359,115100.0,115090.0,0.31024671]
[1761556524747,0.00061359,115100.0,115090.0,0.26359605]
[1761556525060,0.00061359,115100.0,115090.0,0.31037572]
[1761556526654,0.00061359,115100.0,115090.0,0.31337572]
[1761556527499,0.00061359,115100.0,115090.0,0.46697572]
[1761556527859,0.00061359,115100.0,115090.0,0.42019605]
[1761556528055,0.00061359,115100.0,115090.0,1.03825572]
[1761556528292,0.00061359,115100.0,115090.0,1.10059052]
[1761556529852,0.00061359,115100.0,115090.0,0.48253085]
[1761556530762,0.00061359,115100.0,115090.0,0.32893085]
[1761556531111,0.00061359,115100.0,115090.0,0.48245085]
[1761556531713,0.00061359,115100.0,115090.0,0.42011605]
[1761556533415,0.00061359,115100.0,115090.0,0.41711605]
[1761556533881,0.00061359,115100.0,115090.0,0.42211605]
[1761556534867,0.00061359,115100.0,115090.0,0.42311605]
[1761556535082,0.00061359,115100.0,115090.0,0.26959605]
[1761556535292,0.00061359,115100.0,115090.0,0.48441085]
[1761556535483,0.00061359,115100.0,115090.0,0.26859605]
[1761556535665,0.00061359,115100.0,115090.0,0.22657342]
[1761556537627,0.19314204,115100.0,115090.0,0.22657342]
[1761556537785,0.19314204,115100.0,115090.0,0.22557342]
[1761556537987,0.19314204,115100.0,115090.0,0.22057342]
[1761556538370,0.19314204,115100.0,115090.0,0.25177234]
[1761556538987,0.0193801,115100.0,115090.0,0.25177234]
[1761556539197,0.00061359,115100.0,115090.0,0.25177234]
[1761556539398,0.00061359,115100.0,115090.0,0.25477234]
[1761556541944,0.19314204,115100.0,115090.0,0.0809953]
[1761556542186,0.90102072,115100.0,115090.0,0.03419892]
[1761556542329,0.26419454,115100.0,115090.0,0.20797596]
[1761556542545,0.26419454,115100.0,115090.0,0.03419892]
[1761556543173,0.26419454,115100.0,115090.0,0.20497596]
[1761556543375,0.26419454,115100.0,115090.0,0.03119892]
[1761556544176,0.26419454,115100.0,115090.0,0.20497596]
[1761556544541,0.26419454,115100.0,115090.0,0.03119892]
[1761556544923,0.26419454,115100.0,115090.0,0.20497596]
[1761556545465,0.26419454,115100.0,115090.0,0.03119892]
[1761556546064,0.26419454,115100.0,115090.0,0.20497596]
[1761556547172,0.26419454,115100.0,115090.0,0.25177234]
[1761556547648,0.26419454,115100.0,115090.0,0.20497596]
[1761556549518,0.26419454,115100.0,115090.0,0.19719391]
[1761556550117,0.26419454,115100.0,115090.0,0.02341687]
[1761556550315,0.26419454,115100.0,115090.0,0.19719391]
[1761556550488,0.62060353,115100.0,115090.0,0.02341687]
[1761556550830,0.17377704,115090.0,115080.0,0.22840683]
[1761556550985,0.70231254,115090.0,115080.0,0.22840683]
[1761556551193,0.68354603,115090.0,115080.0,0.22840683]
[1761556551622,0.32713704,115090.0,115080.0,0.22840683]
[1761556552614,0.15336,115090.0,115080.0,0.19720791]
[1761556552815,0.32713704,115090.0,115080.0,0.23140683]
[1761556553145,0.15336,115090.0,115080.0,0.23140683]
[1761556555179,0.15336,115090.0,115080.0,0.20020791]
[1761556555398,0.32713704,115090.0,115080.0,0.20020791]
[1761556556415,0.32734385,115090.0,115080.0,0.20020791]
[1761556560379,0.76952432,115090.0,115080.0,0.02641687]
[1761556560747,1.10952432,115090.0,115080.0,0.02641687]
[1761556561198,1.13560155,115090.0,115080.0,0.02641687]
[1761556561781,1.13560155,115090.0,115080.0,0.02341687]
[1761556564455,1.10952432,115090.0,115080.0,0.02341687]
[1761556565509,0.17380108,115080.0,115060.0,0.23712851]
[1761556565711,0.3379866,115080.0,115070.0,0.17380724]
[1761556565927,0.47246009,115080.0,115070.0,0.17380724]
[1761556568310,0.82886908,115080.0,115060.0,0.18251272]
[1761556568513,0.54898274,115070.0,115050.0,0.26052463]
[1761556568718,0.15324,115060.0,115050.0,0.30369332]
[1761556568922,0.34582886,115060.0,115050.0,0.21387431]
[1761556569139,0.32706235,115060.0,115050.0,0.21387431]
[1761556569343,0.15324,115060.0,115050.0,0.21387431]
[1761556569758,0.15324,115060.0,115050.0,0.21687431]
[1761556572497,0.32706235,115060.0,115050.0,0.21687431]
[1761556573095,0.15324,115060.0,115050.0,0.21687431]
[1761556576399,0.15324,115060.0,115050.0,0.70634198]
[1761556577573,0.15324,115060.0,115050.0,0.21687431]
[1761556577809,0.32706235,115060.0,115050.0,0.21687431]
[1761556579779,0.32706235,115060.0,115050.0,0.20818244]
[1761556579990,0.81653002,115060.0,115050.0,0.00314606]
[1761556580213,0.86661698,115060.0,115050.0,0.00314606]
[1761556581178,0.86661698,115060.0,115050.0,0.17698352]
[1761556581346,0.86661698,115060.0,115050.0,0.17398352]
[1761556581540,0.86661698,115060.0,115050.0,0.00014606]
[1761556583818,1.20661698,115060.0,115050.0,0.00014606]
[1761556584439,1.21470287,115060.0,115050.0,0.00014606]
[1761556584824,1.30452188,115060.0,115050.0,0.00014606]
[1761556585371,3.08393749,115060.0,115050.0,0.00014606]
[1761556585914,1.84245382,115060.0,115050.0,0.00014606]
[1761556586052,1.73330382,115060.0,115050.0,0.00014606]
[1761556588067,2.22277149,115060.0,115050.0,0.00014606]
[1761556589276,2.25895377,115060.0,115050.0,0.00014606]
[1761556590630,2.20882249,115060.0,115050.0,0.00014606]
[1761556590781,2.20661577,115060.0,115050.0,0.00014606]
[1761556591411,2.20761577,115060.0,115050.0,0.00014606]
[1761556594173,2.17143349,115060.0,115050.0,0.00014606]
[1761556594381,2.20761577,115060.0,115050.0,0.00014606]
[1761556595704,3.69601877,115060.0,115050.0,1e-08]
[1761556595909,2.22761576,115060.0,115050.0,1e-08]
[1761556597114,2.22661576,115060.0,115050.0,1e-08]
[1761556597571,2.22761576,115060.0,115050.0,1e-08]
[1761556597722,2.23461576,115060.0,115050.0,1e-08]
[1761556598463,2.25317517,115060.0,115050.0,1e-08]
[1761556599371,3.74487757,115060.0,115050.0,1e-08]
[1761556602567,3.83628757,115060.0,115050.0,1e-08]
[1761556602775,3.83625532,115060.0,115050.0,1e-08]
[1761556602982,1.49281814,115020.0,115010.0,0.5]
[1761556603185,1.8894698,115020.0,115010.0,0.50048697]
[1761556603727,1.91556455,115020.0,115010.0,0.50048697]
[1761556604354,1.91556455,115020.0,115010.0,0.50648697]
[1761556604697,0.93662921,115020.0,115010.0,0.50648697]
[1761556604877,1.91556455,115020.0,115010.0,0.50648697]
[1761556605643,1.91556455,115020.0,115010.0,0.50048697]
[1761556606615,1.91556413,115020.0,115010.0,0.50048697]
[1761556607022,1.91556413,115020.0,115010.0,0.50348697]
[1761556615272,0.93662879,115020.0,115010.0,0.50348697]
[1761556615474,1.91556413,115020.0,115010.0,0.50348697]
[1761556620999,5.42014942,115020.0,115010.0,0.50348697]
[1761556621219,5.43014942,115020.0,115010.0,0.09808816]
[1761556621435,5.45876752,115020.0,115010.0,1e-08]
[1761556621888,3.02389792,115010.0,115000.0,0.0015]
[1761556622091,3.6905245,115010.0,115000.0,0.0015]
[1761556622727,4.22185779,114990.0,114980.0,0.00243536]
[1761556622943,4.81329802,114990.0,114980.0,0.00248405]
[1761556623120,4.98717802,114990.0,114980.0,0.00248405]
[1761556623472,5.08504637,114990.0,114980.0,0.00248405]
[1761556623706,5.17486538,114990.0,114980.0,0.00248405]
[1761556624331,5.1090881,114990.0,114980.0,0.00248405]
[1761556624534,1.95082809,114990.0,114980.0,0.00248405]
[1761556624735,2.07086509,114990.0,114980.0,0.00248405]
[1761556625103,2.07186509,114990.0,114980.0,0.00248405]
[1761556625301,2.06886509,114990.0,114980.0,0.00248405]
[1761556625599,2.06786509,114990.0,114980.0,0.00248405]
[1761556625995,0.63389146,114990.0,114980.0,0.00248405]
[1761556626197,1.15790806,114990.0,114980.0,0.00248405]
[1761556626402,1.31126806,114990.0,114980.0,0.00248405]
[1761556626793,1.80773573,114990.0,114980.0,0.00248405]
[1761556626999,1.31726806,114990.0,114980.0,0.00248405]
[1761556627203,1.40708707,114990.0,114980.0,0.00248405]
[1761556627455,1.40008707,114990.0,114980.0,0.00248405]
[1761556627822,1.40208707,114990.0,114980.0,0.00248405]
[1761556628600,1.40308707,114990.0,114980.0,0.00248405]
[1761556629871,1.89403674,114990.0,114980.0,0.00248405]
[1761556630324,1.98511224,114990.0,114980.0,0.00248405]
[1761556630933,2.02129452,114990.0,114980.0,0.00248405]
[1761556633992,0.94980168,114990.0,114980.0,0.00248405]
[1761556634203,2.02129452,114990.0,114980.0,0.00248405]
[1761556638334,0.61480039,114990.0,114980.0,0.00248405]
[1761556638543,1.18096467,114990.0,114980.0,0.00248405]
[1761556638772,0.01105322,114990.0,114980.0,0.17642734]
[1761556638987,0.003,114990.0,114980.0,0.53359162]
[1761556639196,0.16442608,114990.0,114980.0,0.17642734]
[1761556639421,0.15636,114990.0,114980.0,0.17642734]
[1761556639847,0.15436,114990.0,114980.0,0.17642734]
[1761556640057,0.15436,114990.0,114980.0,0.19682166]
[1761556640494,0.15436,114990.0,114980.0,0.19382166]
[1761556640758,0.15336,114990.0,114980.0,0.19982166]
[1761556640967,0.15336,114990.0,114980.0,0.18242734]
[1761556641947,0.52773693,114990.0,114980.0,0.18242734]
[1761556642117,0.52773693,114990.0,114980.0,0.25242734]
[1761556642512,0.17057265,114990.0,114980.0,0.25242734]
[1761556642916,0.15336,114990.0,114980.0,0.24642734]
[1761556643254,0.15336,114990.0,114980.0,0.24742734]
[1761556643631,0.15336,114990.0,114980.0,0.24642734]
[1761556643924,0.15336,114990.0,114980.0,0.24942734]
[1761556647978,0.51052428,114990.0,114980.0,0.24942734]
[1761556648101,0.75289624,114990.0,114980.0,0.07548405]
[1761556648343,1.89704381,114990.0,114980.0,0.07548405]
[1761556649037,1.89704381,114990.0,114980.0,0.00548405]
[1761556649247,0.82555097,114990.0,114980.0,0.00548405]
[1761556649463,1.89704381,114990.0,114980.0,0.00248405]
[1761556649818,1.89704381,114990.0,114980.0,0.00348405]
[1761556650138,1.89704381,114990.0,114980.0,0.00248405]
[1761556650455,1.89904381,114990.0,114980.0,0.00248405]
[1761556650664,1.18471525,114990.0,114980.0,0.00248405]
[1761556651539,1.18571525,114990.0,114980.0,0.00248405]
[1761556653595,1.90004381,114990.0,114980.0,0.00248405]
[1761556654472,1.93622609,114990.0,114980.0,0.00248405]
[1761556654698,3.67202109,114990.0,114980.0,0.00248405]
[1761556655360,1.47558625,114990.0,114980.0,0.00248405]
[1761556655587,2.44106009,114990.0,114980.0,0.00248405]
[1761556660077,1.36956725,114990.0,114980.0,0.00248405]
[1761556660296,2.44106009,114990.0,114980.0,0.00248405]
[1761556663369,1.15345373,114990.0,114980.0,0.00248405]
[1761556663603,1.92342229,114990.0,114980.0,0.00248405]
[1761556664006,1.88724001,114990.0,114980.0,0.00248405]
[1761556664209,1.92342229,114990.0,114980.0,0.00248405]
[1761556664556,1.92346229,114990.0,114980.0,0.00248405]
[1761556664742,1.95014713,114990.0,114980.0,0.00248405]
[1761556664906,2.03996614,114990.0,114980.0,0.00248405]
[1761556665077,2.96522914,114990.0,114980.0,0.00248405]
[1761556665429,2.64755014,114990.0,114980.0,0.00248405]
[1761556665643,2.34302214,114990.0,114980.0,0.00248405]
[1761556667087,2.16679114,114990.0,114980.0,0.00248405]
[1761556667315,2.14289714,114990.0,114980.0,0.00248405]
[1761556667512,2.10671486,114990.0,114980.0,0.00248405]
[1761556668092,2.14289714,114990.0,114980.0,0.00248405]
[1761556668528,1.1001103,114990.0,114980.0,0.00248405]
[1761556668713,2.17160314,114990.0,114980.0,0.00248405]
[1761556669717,1.09802927,114990.0,114980.0,0.00248405]
[1761556669919,1.30702927,114990.0,114980.0,0.00248405]
[1761556670258,2.0399564,114990.0,114980.0,0.00248405]
[1761556670411,2.0399568,114990.0,114980.0,0.00248405]
[1761556670934,1.32562824,114990.0,114980.0,0.00248405]
[1761556671140,1.25138927,114990.0,114980.0,0.00248405]
[1761556671300,1.32562845,114990.0,114980.0,0.00248405]
[1761556672372,2.03995701,114990.0,114980.0,0.00248405]
[1761556672726,1.32562845,114990.0,114980.0,0.00248405]
[1761556677493,2.03995701,114990.0,114980.0,0.00248405]
[1761556682126,1.950138,114990.0,114980.0,0.00248405]
[1761556682300,1.19962716,114990.0,114980.0,0.00248405]
[1761556682548,1.18102798,114990.0,114980.0,0.00248405]
[1761556682744,0.6705037,114990.0,114980.0,0.00248405]
[1761556682903,0.3305037,114990.0,114980.0,0.17642734]
[1761556683102,0.24068469,114990.0,114980.0,0.17642734]
[1761556683329,0.58068469,114990.0,114980.0,0.17642734]
[1761556683565,0.56011653,114990.0,114980.0,0.17642734]
[1761556683806,0.40675653,114990.0,114980.0,0.17642734]
[1761556683940,0.05868,114990.0,114980.0,0.17642734]
[1761556684144,0.21204,114990.0,114980.0,0.17642734]
[1761556684968,0.2863518,114990.0,114980.0,0.17642734]
[1761556685373,0.46027996,114990.0,114980.0,0.00248405]
[1761556685598,0.82552624,114990.0,114980.0,0.00248405]
[1761556687559,0.82552624,114990.0,114980.0,0.17642734]
[1761556687980,0.46836196,114990.0,114980.0,0.17642734]
[1761556688183,0.82552624,114990.0,114980.0,0.00248405]
[1761556688382,0.82552624,114990.0,114980.0,0.17642734]
[1761556688548,0.39405016,114990.0,114980.0,0.17642734]
[1761556689176,0.00304,114990.0,114980.0,0.17642734]
[1761556689352,0.1564,114990.0,114980.0,0.17642734]
[1761556689557,0.1564,114990.0,114980.0,0.19382166]
[1761556689758,0.1564,114990.0,114980.0,0.17642734]
[1761556689998,0.1564,114990.0,114980.0,0.19382166]
[1761556690227,0.1564,114990.0,114980.0,0.68383924]
[1761556690396,0.1564,114990.0,114980.0,0.66644492]
[1761556690934,0.1564,114990.0,114980.0,0.17642734]
[1761556695617,0.1564,114990.0,114980.0,0.66644492]
[1761556695980,0.1564,114990.0,114980.0,0.73644492]
[1761556696637,0.1564,114990.0,114980.0,0.24642734]
[1761556698528,0.15644,114990.0,114980.0,0.24642734]
[1761556700018,0.15644,114990.0,114980.0,0.73644492]
[1761556700238,0.15648,114990.0,114980.0,0.73644492]
[1761556701343,0.00312,114990.0,114980.0,0.82626393]
[1761556702106,0.00112,114990.0,114980.0,0.82626393]
[1761556702520,0.00112,114990.0,114980.0,0.82926393]
[1761556702735,0.00112,114990.0,114980.0,0.82626393]
[1761556702932,0.00012,114990.0,114980.0,0.82626393]
[1761556704394,0.00012,114990.0,114980.0,0.83226393]
[1761556707695,0.64345758,114990.0,114980.0,0.25242734]
[1761556708088,1.79286286,114990.0,114980.0,0.07848405]
[1761556708298,1.39266429,114990.0,114980.0,0.00848405]
[1761556708705,0.7310904,114990.0,114980.0,0.00848405]
[1761556708923,0.7310904,114990.0,114980.0,0.18242734]
[1761556709130,0.7310904,114990.0,114980.0,0.00248405]
[1761556709324,1.21302574,114990.0,114980.0,0.00248405]
[1761556709526,1.22110922,114990.0,114980.0,0.00348405]
[1761556711098,0.73109164,114990.0,114980.0,0.00348405]
[1761556711356,1.22110922,114990.0,114980.0,0.17742734]
[1761556711561,1.06778922,114990.0,114980.0,0.17742734]
[1761556711786,1.22110922,114990.0,114980.0,0.17742734]
[1761556712413,0.73109164,114990.0,114980.0,0.17742734]
[1761556712721,1.22110922,114990.0,114980.0,0.17742734]
[1761556713157,0.40384348,114990.0,114980.0,0.66744492]
[1761556713381,0.55716348,114990.0,114980.0,0.17742734]
[1761556713860,0.21716348,114990.0,114980.0,0.66744492]
[1761556714754,0.21716348,114990.0,114980.0,0.17742734]
[1761556714971,0.21716348,114990.0,114980.0,0.68483924]
[1761556715192,0.21716348,114990.0,114980.0,0.66744492]
[1761556715635,0.21716348,114990.0,114980.0,0.75726393]
[1761556715636,0.00820348,114990.0,114980.0,0.75726393]
[1761556715855,0.00012,114990.0,114980.0,0.75726393]
[1761556716595,0.00012,114990.0,114980.0,0.91058393]
[1761556717259,0.00012,114990.0,114980.0,1.40060151]
[1761556717488,0.00012,114990.0,114980.0,1.39960151]
[1761556717709,0.00012,114990.0,114980.0,1.73960151]
[1761556717914,0.00012,114990.0,114980.0,1.84385455]
[1761556718118,0.00012,114990.0,114980.0,1.84085455]
[1761556718338,0.00012,114990.0,114980.0,1.84169251]
[1761556719242,0.00012,114990.0,114980.0,0.86165735]
[1761556719450,0.22798801,115040.0,115030.0,0.17386768]
[1761556719659,0.74479938,115040.0,115030.0,0.17386768]
[1761556720089,0.57094681,115040.0,115030.0,0.17386768]
[1761556720345,0.08092923,115040.0,115030.0,0.17386768]
[1761556720724,0.03141381,115040.0,115030.0,0.17386768]
[1761556721060,0.18473381,115040.0,115030.0,0.17386768]
[1761556721526,0.01117254,115040.0,115030.0,0.66388526]
[1761556721719,0.00817254,115040.0,115030.0,0.17386768]
[1761556722220,0.00917254,115040.0,115030.0,0.90698427]
[1761556722751,0.00917254,115040.0,115030.0,0.41696669]
[1761556723180,0.00917254,115040.0,115030.0,0.90698427]
[1761556724391,0.00817254,115040.0,115030.0,0.90698427]
[1761556724792,0.00817254,115040.0,115030.0,0.90898427]
[1761556725384,0.00817254,115040.0,115030.0,0.97898427]
[1761556725819,0.00817254,115040.0,115030.0,0.97998427]
[1761556728602,0.49819012,115040.0,115030.0,0.24686768]
[1761556729189,0.67204269,115040.0,115030.0,0.17686768]
[1761556729667,0.72764269,115040.0,115030.0,0.17686768]
[1761556729880,0.72764269,115040.0,115030.0,0.002]
[1761556730087,0.71955473,115040.0,115030.0,0.17586768]
[1761556730290,0.80937374,115040.0,115030.0,0.002]
[1761556730465,0.80937374,115040.0,115020.0,0.1738828]
[1761556730666,0.83589177,115030.0,115020.0,0.1738828]
[1761556730904,0.81712526,115030.0,115010.0,0.20601236]
[1761556731111,0.68266689,115020.0,115010.0,0.18259281]
[1761556731253,0.66390038,115020.0,115010.0,0.18259281]
[1761556731760,0.48992555,115020.0,115010.0,0.18259281]
[1761556732166,0.49963814,115020.0,115010.0,0.18259281]
[1761556732527,0.32710768,115030.0,115010.0,0.18259281]
[1761556732734,0.82674582,115030.0,115010.0,0.18259281]
[1761556733395,0.82674582,115030.0,115020.0,0.1738828]
[1761556733701,0.82674582,115030.0,115010.0,0.18259281]
[1761556733917,0.50263814,115020.0,115010.0,0.18259281]
[1761556734118,0.49963814,115020.0,115010.0,0.18259281]
[1761556735070,0.003,115020.0,115010.0,0.18259281]
[1761556738046,0.003,115020.0,115010.0,0.25259281]
[1761556739951,0.1768828,115020.0,115010.0,0.25259281]
[1761556740156,0.003,115020.0,115010.0,0.25259281]
[1761556741213,0.1768828,115020.0,115010.0,0.25259281]
[1761556741593,0.003,115020.0,115010.0,0.18259281]
[1761556742002,0.52140465,115020.0,115010.0,0.18259281]
[1761556742198,0.67652154,115020.0,115000.0,0.2080341]
[1761556742399,0.65287814,115010.0,115000.0,0.2080341]
[1761556743174,0.15324,115010.0,115000.0,0.2080341]
[1761556743378,0.15324,115010.0,115000.0,0.23928714]
[1761556743715,0.15324,115010.0,115000.0,0.2080341]
[1761556744162,0.15424,115010.0,115000.0,0.2080341]
[1761556744380,0.15424,115010.0,115000.0,0.23928714]
[1761556744800,0.18033357,115010.0,115000.0,0.23928714]
[1761556747299,0.18033357,115010.0,115000.0,0.21586759]
[1761556748214,0.67997171,115010.0,115000.0,0.21586759]
[1761556748418,0.67997171,115010.0,115000.0,0.26266397]
[1761556748938,0.67997171,115010.0,115000.0,0.21586759]
[1761556749256,0.18033357,115010.0,115000.0,0.26266397]
[1761556752169,0.18033357,115010.0,115000.0,0.23141093]
[1761556752404,0.18037357,115010.0,115000.0,0.23141093]
[1761556752620,0.02709357,115010.0,115000.0,0.23141093]
[1761556752777,0.18037357,115010.0,115000.0,0.23141093]
[1761556754070,0.02709357,115010.0,115000.0,0.23141093]
[1761556754278,0.15428,115010.0,115000.0,0.23141093]
[1761556757085,0.001,115010.0,115000.0,0.23141093]
[1761556758303,0.001,115010.0,115000.0,0.66690273]
[1761556758511,0.001,115010.0,115000.0,0.23141093]
[1761556759138,0.001,115010.0,115000.0,0.38469093]
[1761556759374,0.001,115010.0,115000.0,0.33789455]
[1761556759783,0.001,115010.0,115000.0,0.33889455]
[1761556760194,0.19120659,115030.0,115020.0,0.1738828]
[1761556760402,0.026091,115030.0,115020.0,0.24601019]
[1761556760584,0.15328,115030.0,115020.0,0.22862191]
[1761556761082,0.08181338,115040.0,115030.0,0.17386768]
[1761556761287,0.24319359,115040.0,115030.0,0.17386768]
[1761556761701,0.67868539,115040.0,115030.0,0.17386768]
[1761556762568,0.24319359,115040.0,115030.0,0.17386768]
[1761556763414,0.24919359,115040.0,115030.0,0.17386768]
[1761556764025,0.94559758,115040.0,115030.0,0.17386768]
[1761556764149,0.68468539,115040.0,115030.0,0.17386768]
[1761556764348,0.85853796,115040.0,115030.0,0.17386768]
[1761556765138,0.42304616,115040.0,115020.0,0.22862191]
[1761556765361,0.85853796,115040.0,115030.0,0.17386768]
[1761556765519,0.85853456,115040.0,115030.0,0.17386768]
[1761556766405,0.67868199,115040.0,115030.0,0.17386768]
[1761556766702,0.17941338,115040.0,115030.0,0.1973273]
[1761556766863,0.18241338,115040.0,115030.0,0.1973273]
[1761556767063,0.17941338,115040.0,115030.0,0.1973273]
[1761556767418,0.18541338,115040.0,115030.0,0.1973273]
[1761556767627,0.17941338,115040.0,115030.0,0.1973273]
[1761556767832,0.17941338,115040.0,115030.0,0.20514717]
[1761556768082,0.18241338,115040.0,115030.0,0.20514717]
[1761556768409,0.18241338,115040.0,115030.0,0.22857996]
[1761556769013,0.02917338,115040.0,115030.0,0.64063897]
[1761556769224,0.00308458,115040.0,115030.0,0.20514717]
[1761556769865,8.458e-05,115040.0,115030.0,0.20514717]
[1761556770275,0.00108458,115040.0,115030.0,0.20514717]
[1761556771652,0.00108458,115040.0,115030.0,0.73045798]
[1761556771880,0.00108458,115040.0,115030.0,0.29496618]
[1761556772097,0.00098458,115040.0,115030.0,0.34188542]
[1761556772752,0.45425831,115060.0,115050.0,0.17383746]
[1761556772947,0.43597872,115060.0,115050.0,0.17383746]
[1761556773194,0.60980107,115060.0,115050.0,0.17383746]
[1761556773485,0.17383746,115050.0,115030.0,0.20896509]
[1761556773680,0.78135088,115040.0,115030.0,0.20796509]
[1761556773906,0.76258437,115040.0,115030.0,0.20596509]
[1761556774108,0.15324,115040.0,115030.0,0.20596509]
[1761556775805,0.51383746,115050.0,115040.0,0.17385257]